fUSD/lending_fUSD_20240217
["ID","MTS","AMOUNT","RATE_DAILY","PERIOD"]
[314307767,1708169461415,-500.0,0.00055342,120]
[314307768,1708169461425,-500.0,0.00055342,120]
[314307769,1708169461436,-500.0,0.00055342,120]
[314307770,1708169461445,-500.0,0.00055342,120]
[314307771,1708169461455,-500.0,0.00055342,120]
[314307772,1708169461464,-441.93247231,0.00055342,120]
[314307773,1708169461473,-500.0,0.00055342,120]
[314307774,1708169461483,-429.60795498,0.00055342,120]
[314307775,1708169461492,-500.0,0.00055342,30]
[314307776,1708169461501,-1241.82,0.00055342,120]
[314307777,1708169461511,-500.0,0.00055342,120]
[314307778,1708169461520,-500.0,0.00055342,120]
[314307779,1708169461530,-500.0,0.00055342,120]
[314307780,1708169461539,-500.0,0.00055342,2]
[314307781,1708169461548,-500.0,0.00055342,120]
[314307782,1708169461557,-500.0,0.00055342,120]
[314307783,1708169461567,-547.12,0.00055342,120]
[314307784,1708169461576,-500.0,0.00055342,120]
[314307785,1708169461585,-4022.57,0.00055342,120]
[314307786,1708169461594,-346.19466738,0.00055342,120]
[314307787,1708169461603,-500.0,0.00055342,120]
[314307788,1708169461612,-500.0,0.00055342,120]
[314307789,1708169461621,-500.0,0.00055342,120]
[314307790,1708169461630,-500.0,0.00055342,120]
[314307791,1708169461639,-500.0,0.00055342,120]
[314307792,1708169461649,-500.0,0.00055342,120]
[314307793,1708169461658,-500.0,0.00055342,120]
[314307794,1708169461667,-500.0,0.00055342,120]
[314307795,1708169461677,-609.54,0.00055342,120]
[314307796,1708169461687,-500.0,0.00055342,120]
[314307797,1708169461696,-500.0,0.00055342,120]
[314307798,1708169461706,-500.0,0.00055342,120]
[314307799,1708169461715,-500.0,0.00055342,120]
[314307800,1708169461725,-500.0,0.00055342,120]
[314307801,1708169461734,-556.45175921,0.00055342,120]
[314307802,1708169461743,-500.0,0.00055342,120]
[314307803,1708169461753,-500.0,0.00055342,120]
[314307804,1708169461762,-500.0,0.00055342,120]
[314307805,1708169461771,-376.72688887,0.00055342,120]
[314307806,1708169461780,-500.0,0.00055342,120]
[314307807,1708169461789,-500.0,0.00055342,120]
[314307808,1708169461798,-865.57,0.00055342,120]
[314307809,1708169461808,-1012.02861871,0.00055342,7]
[314307810,1708169461817,-739.98,0.00055342,120]
[314307811,1708169461827,-500.0,0.00055342,120]
[314307812,1708169461835,-500.0,0.00055342,120]
[314307813,1708169461844,-500.0,0.00055342,120]
[314307814,1708169461853,-500.0,0.00055342,120]
[314307815,1708169461863,-500.0,0.00055342,120]
[314307816,1708169461871,-500.0,0.00055342,120]
[314307817,1708169461881,-500.0,0.00055342,120]
[314307818,1708169461890,-500.0,0.00055342,120]
[314307819,1708169461899,-477.0009455,0.00055342,120]
[314307820,1708169461909,-500.0,0.00055342,120]
[314307821,1708169461918,-627.86918018,0.00055342,120]
[314307822,1708169461928,-500.0,0.00055342,120]
[314307823,1708169461937,-500.0,0.00055342,120]
[314307824,1708169461946,-704.79,0.00055342,120]
[314307825,1708169461956,-6527.46,0.00055342,120]
[314307826,1708169461965,-743.57,0.00055342,120]
[314307827,1708169461974,-500.0,0.00055342,120]
[314307828,1708169461983,-758.94,0.00055342,120]
[314307829,1708169461992,-500.0,0.00055342,120]
[314307830,1708169462001,-163.50291979,0.00055342,120]
[314307831,1708169462011,-1468.8,0.00055342,120]
[314307832,1708169462020,-431.08318666,0.00055342,120]
[314307833,1708169462029,-315.85110424,0.00055342,120]
[314307834,1708169462037,-500.0,0.00055342,120]
[314307835,1708169462046,-500.0,0.00055342,120]
[314307836,1708169462056,-500.0,0.00055342,120]
[314307837,1708169462065,-500.0,0.00055342,120]
[314307838,1708169462074,-526.79084701,0.00055342,120]
[314307839,1708169462084,-500.0,0.00055342,120]
[314307840,1708169462093,-500.0,0.00055342,120]
[314307841,1708169462103,-3438.58,0.00055342,120]
[314307842,1708169462112,-500.0,0.00055342,120]
[314307843,1708169462122,-500.0,0.00055342,120]
[314307844,1708169462131,-217.11657922,0.00055342,120]
[314307845,1708169462140,-500.0,0.00055342,120]
[314307846,1708169462150,-500.0,0.00055342,120]
[314307847,1708169462159,-500.0,0.00055342,120]
[314307848,1708169462168,-1279.83,0.00055342,120]
[314307849,1708169462178,-413.60222943,0.00055342,120]
[314307850,1708169462188,-582.72,0.00055342,120]
[314307851,1708169462197,-500.0,0.00055342,120]
[314307852,1708169462208,-500.0,0.00055342,120]
[314307853,1708169462219,-500.0,0.00055342,120]
[314307854,1708169462228,-500.0,0.00055342,120]
[314307855,1708169462238,-500.0,0.00055342,120]
[314307856,1708169462247,-500.0,0.00055342,120]
[314307857,1708169462257,-500.0,0.00055342,120]
[314307858,1708169462267,-500.0,0.00055342,120]
[314307859,1708169462276,-500.0,0.00055342,120]
[314307860,1708169462289,-500.0,0.00055342,120]
[314307861,1708169462298,-500.0,0.00055342,120]
[314307862,1708169462308,-176.72431962,0.00055342,120]
[314307863,1708169462317,-500.0,0.00055342,120]
[314307864,1708169462326,-500.0,0.00055342,120]
[314307865,1708169462336,-500.0,0.00055342,120]
[314307866,1708169462345,-500.0,0.00055342,120]
[314307867,1708169462355,-500.0,0.00055342,120]
[314307868,1708169462365,-500.0,0.00055342,120]
[314307869,1708169462374,-500.0,0.00055342,120]
[314307870,1708169462383,-500.0,0.00055342,120]
[314307871,1708169462393,-500.0,0.00055342,120]
[314307872,1708169462402,-500.0,0.00055342,120]
[314307873,1708169462411,-769.19,0.00055342,120]
[314307874,1708169462420,-500.0,0.00055342,120]
[314307875,1708169462430,-4337.99,0.00055342,120]
[314307876,1708169462440,-500.0,0.00055342,120]
[314307877,1708169462449,-16672.61,0.00055342,120]
[314307878,1708169462458,-500.0,0.00055342,120]
[314307879,1708169462468,-500.0,0.00055342,120]
[314307880,1708169462477,-500.0,0.00055342,120]
[314307881,1708169462486,-500.0,0.00055342,120]
[314307882,1708169462495,-500.0,0.00055342,14]
[314307883,1708169462505,-503.93329782,0.00055342,120]
[314307884,1708169462514,-500.0,0.00055342,120]
[314307885,1708169462523,-500.0,0.00055342,120]
[314307886,1708169462533,-4548.64,0.00055342,120]
[314307887,1708169462542,-568.12,0.00055342,120]
[314307888,1708169462551,-500.0,0.00055342,120]
[314307889,1708169462560,-599.78706399,0.00055342,120]
[314307890,1708169462569,-500.0,0.00055342,120]
[314307891,1708169462578,-648.02242233,0.00055342,120]
[314307892,1708169462587,-500.0,0.00055342,120]
[314307893,1708169462596,-500.0,0.00055342,120]
[314307894,1708169462606,-500.0,0.00055342,120]
[314307895,1708169462615,-500.0,0.00055342,2]
[314307896,1708169462624,-500.0,0.00055342,120]
[314307897,1708169462633,-500.0,0.00055342,120]
[314307898,1708169462643,-500.0,0.00055342,2]
[314307899,1708169462652,-150.0,0.00055355,14]
[314307900,1708169462661,-150.0,0.00055355,14]
[314307901,1708169462670,-300.0,0.00055361,14]
[314307902,1708169462680,-384.96060738,0.00055363,14]
[314307903,1708169462689,-150.0,0.00055366,14]
[314307904,1708169462698,-150.0,0.00055375,14]
[314307905,1708169462708,-150.0,0.00055384,14]
[314307906,1708169462717,-150.0,0.00055385,14]
[314307907,1708169462727,-300.0,0.00055389,14]
[314307908,1708169462736,-189.7217959,0.00055393,14]
[314307909,1708169462745,-300.0,0.00055397,14]
[314307910,1708169462754,-150.0,0.00055397,14]
[314307911,1708169462763,-1000.0,0.00055399,120]
[314307912,1708169462772,-1500.0,0.00055406,14]
[314307913,1708169462781,-150.0,0.00055406,14]
[314307914,1708169462790,-150.0,0.00055414,14]
[314307915,1708169462799,-150.0,0.00055414,14]
[314307916,1708169462809,-200.0,0.00055418,120]
[314307917,1708169462817,-150.0,0.00055418,14]
[314307918,1708169462827,-1500.0,0.00055423,14]
[314307919,1708169462836,-500.0,0.00055427,120]
[314307920,1708169462846,-150.0,0.00055429,14]
[314307921,1708169462855,-150.0,0.00055435,14]
[314307922,1708169462864,-150.0,0.00055438,14]
[314307923,1708169462873,-688.00780003,0.00055442,120]
[314307924,1708169462882,-150.0,0.00055446,14]
[314307925,1708169462891,-223.021788,0.00055448,102]
[314307926,1708169462900,-1000.0,0.00055448,60]
[314307927,1708169462909,-1000.0,0.00055448,60]
[314307928,1708169462918,-300.0,0.00055449,14]
[314307929,1708169462927,-150.0,0.00055452,14]
[314307930,1708169462936,-688.00780003,0.00055454,120]
[314307931,1708169462946,-1500.0,0.00055463,14]
[314307932,1708169462955,-150.0,0.00055464,14]
[314307933,1708169462964,-300.0,0.00055465,14]
[314307934,1708169462973,-150.0,0.00055468,14]
[314307935,1708169462983,-150.0,0.00055468,14]
[314307936,1708169462991,-150.0,0.00055472,14]
[314307937,1708169463002,-3000.0,0.0005548,75]
[314307938,1708169463012,-150.0,0.00055489,14]
[314307939,1708169463021,-150.0,0.00055494,14]
[314307940,1708169463030,-150.0,0.00055494,14]
[314307941,1708169463039,-300.0,0.00055495,14]
[314307942,1708169463049,-150.0,0.00055497,14]
[314307943,1708169463058,-688.00780003,0.00055499,120]
[314307944,1708169463067,-1000.0,0.000555,100]
[314307945,1708169463076,-190.8,0.000555,60]
[314307946,1708169463086,-150.0,0.00055505,14]
[314307947,1708169463096,-150.0,0.00055506,14]
[314307948,1708169463106,-150.0,0.00055506,14]
[314307949,1708169463116,-150.0,0.00055518,14]
[314307950,1708169463127,-150.0,0.0005552,14]
[314307951,1708169463136,-300.0,0.00055521,14]
[314307952,1708169463146,-370.0,0.00055521,30]
[314307953,1708169463155,-688.00780003,0.00055522,120]
[314307954,1708169463166,-688.00780003,0.00055523,120]
[314307955,1708169463176,-500.0,0.00055532,120]
[314307956,1708169463185,-150.0,0.00055533,14]
[314307957,1708169463195,-150.0,0.00055539,14]
[314307958,1708169463206,-150.0,0.00055541,14]
[314307959,1708169463219,-150.0,0.00055547,14]
[314307960,1708169463228,-150.0,0.00055551,14]
[314307961,1708169463237,-150.0,0.00055554,30]
[314307962,1708169463246,-153.466031,0.00055554,30]
[314307963,1708169463257,-167.330159,0.00055554,30]
[314307964,1708169463267,-150.0,0.00055557,14]
[314307965,1708169463276,-1500.0,0.00055566,14]
[314307966,1708169463286,-150.0,0.00055569,14]
[314307967,1708169463296,-150.0,0.0005557,30]
[314307968,1708169463305,-150.0,0.00055571,14]
[314307969,1708169463315,-150.0,0.00055577,14]
[314307970,1708169463324,-150.0,0.00055578,14]
[314307971,1708169463333,-688.00780003,0.00055585,120]
[314307972,1708169463343,-688.00780003,0.00055595,120]
[314307973,1708169463351,-152.0,0.00055595,120]
[314307974,1708169463361,-200.0,0.000556,34]
[314307975,1708169463369,-150.0,0.000556,103]
[314307976,1708169463379,-200.0,0.000556,34]
[314307977,1708169463388,-150.0,0.000556,34]
[314307978,1708169463397,-160.0,0.000556,120]
[314307979,1708169463406,-1000.0,0.000556,60]
[314307980,1708169463415,-525.7672,0.000556,30]
[314307981,1708169463425,-200.0,0.000556,2]
[314307982,1708169463434,-300.0,0.000556,32]
[314307983,1708169463444,-1312.8105374,0.000556,32]
[314307984,1708169463453,-1734.5123622,0.00055607,2]
[314307985,1708169463461,-45695.9351266,0.00055607,2]
[314307986,1708169463471,-430.45799253,0.00055616,60]
[314307987,1708169463481,-1854.3255711,0.00055616,60]
[314307988,1708169463490,-467.40414588,0.00055616,60]
[314307989,1708169463499,-281.00260135,0.00055616,60]
[314307990,1708169463508,-500.0,0.00055616,120]
[314307991,1708169463517,-633.78,0.00055616,2]
[314307992,1708169463526,-274.8613901,0.00055616,60]
[314307993,1708169463535,-500.0,0.00055616,120]
[314307994,1708169463544,-500.0,0.00055616,120]
[314307995,1708169463553,-500.0,0.00055616,120]
[314307996,1708169463562,-500.0,0.00055616,120]
[314307997,1708169463571,-500.0,0.00055616,120]
[314307998,1708169463580,-500.0,0.00055616,120]
[314307999,1708169463589,-500.0,0.00055616,120]
[314308000,1708169463599,-150.41033295,0.00055616,2]
[314308001,1708169463608,-500.0,0.00055616,120]
[314308002,1708169463617,-500.0,0.00055616,120]
[314308003,1708169463626,-500.0,0.00055616,120]
[314308004,1708169463636,-500.0,0.00055616,120]
[314308005,1708169463645,-500.0,0.00055616,120]
[314308006,1708169463653,-500.0,0.00055616,120]
[314308007,1708169463662,-500.0,0.00055616,120]
[314308008,1708169463671,-2455.68914093,0.00055616,60]
[314308009,1708169463680,-500.0,0.00055616,120]
[314308010,1708169463689,-500.0,0.00055616,120]
[314308011,1708169463699,-500.0,0.00055616,120]
[314308012,1708169463708,-500.0,0.00055616,120]
[314308013,1708169463717,-500.0,0.00055616,120]
[314308014,1708169463726,-500.0,0.00055616,120]
[314308015,1708169463735,-412.91214376,0.00055616,120]
[314308016,1708169463745,-500.0,0.00055616,2]
[314308017,1708169463754,-500.0,0.00055616,120]
[314308018,1708169463763,-500.0,0.00055616,120]
[314308019,1708169463772,-430.56532083,0.00055616,120]
[314308020,1708169463782,-500.0,0.00055616,120]
[314308021,1708169463791,-500.0,0.00055616,120]
[314308022,1708169463800,-500.0,0.00055616,2]
[314308023,1708169463809,-500.0,0.00055616,7]
[314308024,1708169463818,-500.0,0.00055616,120]
[314308025,1708169463827,-500.0,0.00055616,120]
[314308026,1708169463836,-500.0,0.00055616,120]
[314308027,1708169463845,-381.13619295,0.00055616,120]
[314308028,1708169463854,-500.0,0.00055616,2]
[314308029,1708169463863,-500.0,0.00055616,120]
[314308030,1708169463872,-500.0,0.00055616,120]
[314308031,1708169463881,-500.0,0.00055616,120]
[314308032,1708169463890,-500.0,0.00055616,120]
[314308033,1708169463899,-500.0,0.00055616,120]
[314308034,1708169463908,-500.0,0.00055616,120]
[314308035,1708169463916,-266.35475041,0.00055616,120]
[314308036,1708169463926,-500.0,0.00055616,120]
[314308037,1708169463934,-500.0,0.00055616,120]
[314308038,1708169463943,-517.56,0.00055616,120]
[314308039,1708169463952,-500.0,0.00055616,120]
[314308040,1708169463961,-500.0,0.00055616,120]
[314308041,1708169463970,-1000.0,0.00055616,120]
[314308042,1708169463979,-500.0,0.00055616,120]
[314308043,1708169463988,-500.0,0.00055616,120]
[314308044,1708169463997,-500.0,0.00055616,120]
[314308045,1708169464007,-500.0,0.00055616,120]
[314308046,1708169464015,-500.0,0.00055616,120]
[314308047,1708169464025,-500.0,0.00055616,120]
[314308048,1708169464034,-407.52184914,0.00055616,120]
[314308049,1708169464044,-500.0,0.00055616,120]
[314308050,1708169464053,-631.4077524,0.00055616,120]
[314308051,1708169464062,-500.0,0.00055616,120]
[314308052,1708169464071,-500.0,0.00055616,120]
[314308053,1708169464080,-150.0,0.00055616,120]
[314308054,1708169464090,-245.18,0.00055616,120]
[314308055,1708169464099,-541.15428725,0.00055616,120]
[314308056,1708169464109,-524.88,0.00055616,120]
[314308057,1708169464119,-744.32,0.00055616,120]
[314308058,1708169464128,-619.31635118,0.00055616,120]
[314308059,1708169464245,-500.0,0.00055616,120]
[314308060,1708169464257,-500.0,0.00055616,120]
[314308061,1708169464266,-542.07529504,0.00055616,120]
[314308062,1708169464276,-346.87220357,0.00055616,120]
[314308063,1708169464286,-500.0,0.00055616,120]
[314308064,1708169464295,-500.0,0.00055616,120]
[314308065,1708169464309,-500.0,0.00055616,2]
[314308066,1708169464325,-284.37982409,0.00055616,60]
[314308067,1708169464335,-500.0,0.00055616,120]
[314308068,1708169464345,-500.0,0.00055616,120]
[314308069,1708169464354,-598.79054797,0.00055616,120]
[314308070,1708169464363,-500.0,0.00055616,120]
[314308071,1708169464373,-500.0,0.00055616,120]
[314308072,1708169464382,-404.50997935,0.00055616,120]
[314308073,1708169464392,-500.0,0.00055616,120]
[314308074,1708169464401,-511.74471444,0.00055616,120]
[314308075,1708169464411,-500.0,0.00055616,120]
[314308076,1708169464420,-500.0,0.00055616,120]
[314308077,1708169464431,-500.0,0.00055616,120]
[314308078,1708169464441,-500.0,0.00055616,120]
[314308079,1708169464451,-500.0,0.00055616,120]
[314308080,1708169464460,-650.0,0.00055616,120]
[314308081,1708169464470,-500.0,0.00055616,120]
[314308082,1708169464480,-366.1968136,0.00055616,120]
[314308083,1708169464489,-500.0,0.00055616,120]
[314308084,1708169464498,-500.0,0.00055616,7]
[314308085,1708169464508,-609.97762595,0.00055616,120]
[314308086,1708169464517,-500.0,0.00055616,120]
[314308087,1708169464526,-500.0,0.00055616,120]
[314308088,1708169464535,-500.0,0.00055616,120]
[314308089,1708169464545,-280.66344346,0.00055616,120]
[314308090,1708169464554,-500.0,0.00055616,120]
[314308091,1708169464563,-500.0,0.00055616,120]
[314308092,1708169464573,-500.0,0.00055616,120]
[314308093,1708169464582,-500.0,0.00055616,120]
[314308094,1708169464591,-500.0,0.00055616,120]
[314308095,1708169464600,-500.0,0.00055616,120]
[314308096,1708169464609,-500.0,0.00055616,120]
[314308097,1708169464619,-500.0,0.00055616,120]
[314308098,1708169464628,-623.71211797,0.00055616,120]
[314308099,1708169464637,-500.0,0.00055616,120]
[314308100,1708169464647,-500.0,0.00055616,120]
[314308101,1708169464657,-500.0,0.00055616,120]
[314308102,1708169464666,-500.0,0.00055616,120]
[314308103,1708169464675,-500.0,0.00055616,120]
[314308104,1708169464685,-500.0,0.00055616,120]
[314308105,1708169464695,-500.0,0.00055616,120]
[314308106,1708169464705,-500.0,0.00055616,120]
[314308107,1708169464715,-921.44,0.00055616,120]
[314308108,1708169464725,-295.9596441,0.00055616,120]
[314308109,1708169464734,-2114.31,0.00055616,120]
[314308110,1708169464743,-500.0,0.00055616,120]
[314308111,1708169464752,-500.0,0.00055616,120]
[314308112,1708169464761,-500.0,0.00055616,120]
[314308113,1708169464770,-500.0,0.00055616,120]
[314308114,1708169464779,-500.0,0.00055616,120]
[314308115,1708169464789,-500.0,0.00055616,120]
[314308116,1708169464798,-500.0,0.00055616,120]
[314308117,1708169464807,-500.0,0.00055616,120]
[314308118,1708169464816,-500.0,0.00055616,120]
[314308119,1708169464826,-500.0,0.00055616,120]
[314308120,1708169464835,-1613.29,0.00055616,120]
[314308121,1708169464845,-500.0,0.00055616,120]
[314308122,1708169464855,-560.76,0.00055616,120]
[314308123,1708169464864,-500.0,0.00055616,120]
[314308124,1708169464873,-500.0,0.00055616,120]
[314308125,1708169464883,-151.05,0.00055616,120]
[314308126,1708169464892,-500.0,0.00055616,120]
[314308127,1708169464902,-500.0,0.00055616,120]
[314308128,1708169464911,-500.0,0.00055616,120]
[314308129,1708169464921,-500.0,0.00055616,120]
[314308130,1708169464931,-500.0,0.00055616,120]
[314308131,1708169464940,-500.0,0.00055616,120]
[314308132,1708169464949,-500.0,0.00055616,120]
[314308133,1708169464959,-500.0,0.00055616,120]
[314308134,1708169464968,-500.0,0.00055616,120]
[314308135,1708169464977,-548.15,0.00055616,120]
[314308136,1708169464987,-500.0,0.00055616,120]
[314308137,1708169464997,-500.0,0.00055616,30]
[314308138,1708169465006,-1241.82,0.00055616,120]
[314308139,1708169465016,-268.99091138,0.00055616,120]
[314308140,1708169465026,-500.0,0.00055616,120]
[314308141,1708169465035,-500.0,0.00055616,120]
[314308142,1708169465045,-500.0,0.00055616,120]
[314308143,1708169465055,-344.09418387,0.00055616,120]
[314308144,1708169465065,-547.12,0.00055616,120]
[314308145,1708169465075,-346.69449062,0.00055616,120]
[314308146,1708169465085,-4022.57,0.00055616,120]
[314308147,1708169465096,-238.54989726,0.00055616,120]
[314308148,1708169465105,-500.0,0.00055616,2]
[314308149,1708169465115,-500.0,0.00055616,120]
[314308150,1708169465125,-500.0,0.00055616,120]
[314308151,1708169465135,-500.0,0.00055616,120]
[314308152,1708169465145,-500.0,0.00055616,120]
[314308153,1708169465155,-594.3296275,0.00055616,120]
[314308154,1708169465164,-500.0,0.00055616,120]
[314308155,1708169465174,-609.54,0.00055616,120]
[314308156,1708169465184,-500.0,0.00055616,120]
[314308157,1708169465193,-500.0,0.00055616,120]
[314308158,1708169465204,-500.0,0.00055616,120]
[314308159,1708169465216,-500.0,0.00055616,120]
[314308160,1708169465226,-500.0,0.00055616,120]
[314308161,1708169465236,-618.51776051,0.00055616,120]
[314308162,1708169465246,-500.0,0.00055616,120]
[314308163,1708169465256,-500.0,0.00055616,120]
[314308164,1708169465266,-500.0,0.00055616,120]
[314308165,1708169465276,-500.0,0.00055616,120]
[314308166,1708169465286,-865.57,0.00055616,120]
[314308167,1708169465297,-739.98,0.00055616,120]
[314308168,1708169465306,-500.0,0.00055616,120]
[314308169,1708169465316,-500.0,0.00055616,120]
[314308170,1708169465326,-500.0,0.00055616,120]
[314308171,1708169465335,-500.0,0.00055616,120]
[314308172,1708169465345,-500.0,0.00055616,120]
[314308173,1708169465355,-500.0,0.00055616,120]
[314308174,1708169465364,-500.0,0.00055616,120]
[314308175,1708169465376,-500.0,0.00055616,120]
[314308176,1708169465386,-500.0,0.00055616,120]
[314308177,1708169465395,-500.0,0.00055616,120]
[314308178,1708169465405,-500.0,0.00055616,120]
[314308179,1708169465414,-704.79,0.00055616,120]
[314308180,1708169465423,-6527.46,0.00055616,120]
[314308181,1708169465433,-743.57,0.00055616,120]
[314308182,1708169465443,-758.94,0.00055616,120]
[314308183,1708169465453,-500.0,0.00055616,120]
[314308184,1708169465462,-500.0,0.00055616,120]
[314308185,1708169465472,-1468.8,0.00055616,120]
[314308186,1708169465481,-500.0,0.00055616,120]
[314308187,1708169465491,-500.0,0.00055616,120]
[314308188,1708169465500,-500.0,0.00055616,120]
[314308189,1708169465510,-500.0,0.00055616,120]
[314308190,1708169465521,-500.0,0.00055616,120]
[314308191,1708169465531,-500.0,0.00055616,120]
[314308192,1708169465540,-3438.58,0.00055616,120]
[314308193,1708169465550,-500.0,0.00055616,120]
[314308194,1708169465560,-500.0,0.00055616,120]
[314308195,1708169465569,-500.0,0.00055616,120]
[314308196,1708169465580,-500.0,0.00055616,120]
[314308197,1708169465589,-500.0,0.00055616,120]
[314308198,1708169465598,-1279.83,0.00055616,120]
[314308199,1708169465607,-582.72,0.00055616,120]
[314308200,1708169465617,-500.0,0.00055616,120]
[314308201,1708169465626,-500.0,0.00055616,120]
[314308202,1708169465636,-419.75916695,0.00055616,120]
[314308203,1708169465645,-500.0,0.00055616,120]
[314308204,1708169465655,-500.0,0.00055616,120]
[314308205,1708169465664,-500.0,0.00055616,120]
[314308206,1708169465674,-500.0,0.00055616,120]
[314308207,1708169465684,-500.0,0.00055616,120]
[314308208,1708169465694,-500.0,0.00055616,120]
[314308209,1708169465703,-500.0,0.00055616,120]
[314308210,1708169465713,-500.0,0.00055616,120]
[314308211,1708169465723,-500.0,0.00055616,120]
[314308212,1708169465733,-500.0,0.00055616,120]
[314308213,1708169465743,-500.0,0.00055616,120]
[314308214,1708169465752,-500.0,0.00055616,120]
[314308215,1708169465761,-500.0,0.00055616,120]
[314308216,1708169465770,-500.0,0.00055616,120]
[314308217,1708169465780,-500.0,0.00055616,120]
[314308218,1708169465790,-500.0,0.00055616,120]
[314308219,1708169465800,-500.0,0.00055616,120]
[314308220,1708169465809,-362.38763825,0.00055616,120]
[314308221,1708169465818,-769.19,0.00055616,120]
[314308222,1708169465827,-500.0,0.00055616,120]
[314308223,1708169465836,-4337.99,0.00055616,120]
[314308224,1708169465846,-500.0,0.00055616,120]
[314308225,1708169465857,-16672.61,0.00055616,120]
[314308226,1708169465866,-500.0,0.00055616,120]
[314308227,1708169465876,-500.0,0.00055616,120]
[314308228,1708169465886,-500.0,0.00055616,120]
[314308229,1708169465895,-500.0,0.00055616,120]
[314308230,1708169465904,-500.0,0.00055616,14]
[314308231,1708169465914,-500.0,0.00055616,120]
[314308232,1708169465924,-500.0,0.00055616,120]
[314308233,1708169465934,-4548.64,0.00055616,120]
[314308234,1708169465943,-568.12,0.00055616,120]
[314308235,1708169465954,-500.0,0.00055616,120]
[314308236,1708169465963,-500.0,0.00055616,120]
[314308237,1708169465972,-500.0,0.00055616,120]
[314308238,1708169465982,-500.0,0.00055616,120]
[314308239,1708169465991,-500.0,0.00055616,120]
[314308240,1708169466001,-500.0,0.00055616,2]
[314308241,1708169466011,-500.0,0.00055616,120]
[314308242,1708169466020,-355.96276993,0.00055616,120]
[314308243,1708169466029,-317.73,0.00055616,30]
[314308244,1708169466039,-405.51,0.00055616,30]
[314308245,1708169466049,-405.51,0.00055616,30]
[314308246,1708169466059,-405.51,0.00055616,30]
[314308247,1708169466068,-160.0,0.00055616,120]
[314308248,1708169466078,-1208.0,0.00055623,30]
[314308249,1708169466088,-500.0,0.00055638,120]
[314308250,1708169466097,-3120.96943832,0.00055645,30]
[314308251,1708169466107,-205.0,0.00055692,24]
[314308252,1708169466117,-500.0,0.00055743,120]
[314308253,1708169466126,-223.021788,0.00055748,107]
[314308254,1708169466136,-15699.45471214,0.0005579,16]
[314308255,1708169466146,-177.55942042,0.000558,62]
[314308256,1708169466155,-227.89924922,0.0005583,15]
[314308257,1708169466165,-188.9450234,0.0005583,15]
[314308258,1708169466174,-500.0,0.00055848,120]
[314308259,1708169466183,-633.78,0.0005589,2]
[314308260,1708169466193,-500.0,0.0005589,120]
[314308261,1708169466202,-500.0,0.0005589,120]
[314308262,1708169466214,-500.0,0.0005589,120]
[314308263,1708169466224,-608.51359659,0.0005589,120]
[314308264,1708169466234,-493.88427316,0.0005589,120]
[314308265,1708169466244,-500.0,0.0005589,120]
[314308266,1708169466254,-500.0,0.0005589,120]